[Event "*** Titled Tuesday Blitz"]
[Site "Chess.com"]
[Date "2020.11.10"]
[Round "6"]
[White "Ariadna_Atreides"]
[Black "ajdemipopushi"]
[Result "0-1"]
[WhiteElo "2108"]
[BlackElo "2403"]
[TimeControl "180+1"]
[EndTime "11:09:36 PST"]
[Termination "ajdemipopushi won on time"]

1. d4 {[%clk 0:03:00.9]} 1... Nf6 {[%clk 0:02:53.3]} 2. Nf3 {[%clk 0:02:59.4]}
2... c5 {[%clk 0:02:53.5]} 3. e3 {[%clk 0:02:58.6]} 3... g6 {[%clk 0:02:50.8]}
4. Bd3 {[%clk 0:02:54.3]} 4... b6 {[%clk 0:02:49.8]} 5. O-O {[%clk 0:02:53.4]}
5... Bb7 {[%clk 0:02:49.9]} 6. b3 {[%clk 0:02:52.9]} 6... Bg7 {[%clk 0:02:49.5]}
7. Bb2 {[%clk 0:02:53.3]} 7... O-O {[%clk 0:02:48.9]} 8. c4 {[%clk 0:02:51.3]}
8... cxd4 {[%clk 0:02:47.8]} 9. exd4 {[%clk 0:02:47.3]} 9... d5 {[%clk
0:02:47.5]} 10. Nbd2 {[%clk 0:02:44]} 10... Nc6 {[%clk 0:02:40.3]} 11. Ne5
{[%clk 0:02:32.6]} 11... dxc4 {[%clk 0:02:37.1]} 12. Nxc6 {[%clk 0:02:26.9]}
12... Bxc6 {[%clk 0:02:35.8]} 13. bxc4 {[%clk 0:02:27.2]} 13... Rc8 {[%clk
0:02:31.1]} 14. d5 {[%clk 0:02:18.7]} 14... Ba8 {[%clk 0:02:28.6]} 15. Nf3
{[%clk 0:02:07.9]} 15... Re8 {[%clk 0:02:21.6]} 16. Re1 {[%clk 0:02:05.2]} 16...
b5 {[%clk 0:02:10.4]} 17. cxb5 {[%clk 0:01:50.4]} 17... Qxd5 {[%clk 0:02:09]}
18. Qe2 {[%clk 0:01:37]} 18... Red8 {[%clk 0:01:33.7]} 19. Bc2 {[%clk
0:01:14.1]} 19... e6 {[%clk 0:01:22.4]} 20. Bb3 {[%clk 0:01:11.4]} 20... Qb7
{[%clk 0:01:16]} 21. a4 {[%clk 0:00:44]} 21... a6 {[%clk 0:01:14]} 22. Bxe6
{[%clk 0:00:29.8]} 22... fxe6 {[%clk 0:01:10.8]} 23. Qxe6+ {[%clk 0:00:28.2]}
23... Qf7 {[%clk 0:01:10.6]} 24. Qxa6 {[%clk 0:00:26.7]} 24... Bxf3 {[%clk
0:01:08.4]} 25. gxf3 {[%clk 0:00:22.9]} 25... Rc2 {[%clk 0:00:51.8]} 26. Be5
{[%clk 0:00:13.8]} 26... Nh5 {[%clk 0:00:41]} 27. Qb6 {[%clk 0:00:09.4]} 27...
Rf8 {[%clk 0:00:35.9]} 28. Bxg7 {[%clk 0:00:07.7]} 28... Kxg7 {[%clk 0:00:34.1]}
29. Qd4+ {[%clk 0:00:05.7]} 29... Kh6 {[%clk 0:00:32.3]} 30. Qe3+ {[%clk
0:00:03.4]} 30... Nf4 {[%clk 0:00:31.6]} 31. b6 {[%clk 0:00:01.8]} 31... Qf6
{[%clk 0:00:31.6]} 32. Kh1 {[%clk 0:00:01.2]} 32... Rb2 {[%clk 0:00:24.6]} 0-1

[Event "*** Titled Tuesday Blitz"]
[Site "Chess.com"]
[Date "2020.11.10"]
[Round "6"]
[White "guillembaches"]
[Black "eljanov"]
[Result "0-1"]
[WhiteElo "2383"]
[BlackElo "2789"]
[TimeControl "180+1"]
[EndTime "11:09:37 PST"]
[Termination "eljanov won on time"]

1. e4 {[%clk 0:03:00.9]} 1... c6 {[%clk 0:02:59.6]} 2. d4 {[%clk 0:03:00.3]}
2... d5 {[%clk 0:02:59.9]} 3. exd5 {[%clk 0:03:01.2]} 3... cxd5 {[%clk
0:03:00.1]} 4. Bd3 {[%clk 0:03:01.8]} 4... Nf6 {[%clk 0:03:00.7]} 5. c3 {[%clk
0:03:02.4]} 5... Bg4 {[%clk 0:03:00.5]} 6. Qb3 {[%clk 0:03:00.9]} 6... Qc7
{[%clk 0:02:58.6]} 7. h3 {[%clk 0:03:01]} 7... Bd7 {[%clk 0:02:58.1]} 8. Nf3
{[%clk 0:02:56.3]} 8... e6 {[%clk 0:02:56.4]} 9. Na3 {[%clk 0:02:47.6]} 9... a6
{[%clk 0:02:54.3]} 10. O-O {[%clk 0:02:40.4]} 10... Bd6 {[%clk 0:02:52]} 11. c4
{[%clk 0:02:40]} 11... Nc6 {[%clk 0:02:17.1]} 12. cxd5 {[%clk 0:02:32.7]} 12...
Nxd5 {[%clk 0:02:12.3]} 13. Nc4 {[%clk 0:02:30.8]} 13... O-O {[%clk 0:02:08.8]}
14. Nxd6 {[%clk 0:02:21.6]} 14... Qxd6 {[%clk 0:02:07.7]} 15. Rd1 {[%clk
0:02:09.3]} 15... Ncb4 {[%clk 0:01:58.2]} 16. Be4 {[%clk 0:02:02.3]} 16... Nf6
{[%clk 0:01:44.3]} 17. Bb1 {[%clk 0:01:49.1]} 17... Rac8 {[%clk 0:01:24]} 18.
Bd2 {[%clk 0:01:34.4]} 18... Nbd5 {[%clk 0:01:16.8]} 19. Ne5 {[%clk 0:01:33.1]}
19... Rc7 {[%clk 0:01:11.1]} 20. Qd3 {[%clk 0:01:21.4]} 20... Rfc8 {[%clk
0:01:04.2]} 21. Nxd7 {[%clk 0:01:10.7]} 21... Qxd7 {[%clk 0:01:02.7]} 22. a3
{[%clk 0:01:07.9]} 22... Qa4 {[%clk 0:00:51.6]} 23. Bg5 {[%clk 0:01:00.8]} 23...
h6 {[%clk 0:00:47.2]} 24. Bh4 {[%clk 0:00:39.6]} 24... Rc1 {[%clk 0:00:32.8]}
25. Ba2 {[%clk 0:00:38.5]} 25... Nf4 {[%clk 0:00:28.4]} 26. Qd2 {[%clk
0:00:24.1]} 26... Qxd1+ {[%clk 0:00:24.4]} 27. Qxd1 {[%clk 0:00:23.3]} 27...
Rxd1+ {[%clk 0:00:24.6]} 28. Rxd1 {[%clk 0:00:23.9]} 28... Rc2 {[%clk
0:00:22.9]} 29. Bb1 {[%clk 0:00:13.4]} 29... Rxb2 {[%clk 0:00:20.5]} 30. Rc1
{[%clk 0:00:13.7]} 30... g5 {[%clk 0:00:20.5]} 31. Bg3 {[%clk 0:00:13.7]} 31...
Ne2+ {[%clk 0:00:20.4]} 32. Kf1 {[%clk 0:00:13.8]} 32... Nxc1 {[%clk 0:00:20.6]}
0-1

[Event "*** Titled Tuesday Blitz"]
[Site "Chess.com"]
[Date "2020.11.10"]
[Round "6"]
[White "ViktoriyaTarasova"]
[Black "karwowskikacper"]
[Result "0-1"]
[WhiteElo "2261"]
[BlackElo "2433"]
[TimeControl "180+1"]
[EndTime "11:09:37 PST"]
[Termination "karwowskikacper won by resignation"]

1. d4 {[%clk 0:03:00.9]} 1... Nf6 {[%clk 0:02:59]} 2. c4 {[%clk 0:03:01]} 2...
g6 {[%clk 0:02:58.2]} 3. Nc3 {[%clk 0:03:00.3]} 3... Bg7 {[%clk 0:02:59.1]} 4.
e4 {[%clk 0:03:00]} 4... d6 {[%clk 0:02:58.9]} 5. h3 {[%clk 0:03:00.4]} 5... O-O
{[%clk 0:02:58.4]} 6. Be3 {[%clk 0:03:01]} 6... c5 {[%clk 0:02:58.1]} 7. d5
{[%clk 0:03:00.6]} 7... b5 {[%clk 0:02:48.3]} 8. cxb5 {[%clk 0:02:59.3]} 8...
Qa5 {[%clk 0:02:48]} 9. Bd2 {[%clk 0:02:58.3]} 9... a6 {[%clk 0:02:46.6]} 10. a4
{[%clk 0:02:57.1]} 10... axb5 {[%clk 0:02:43.7]} 11. Bxb5 {[%clk 0:02:53.3]}
11... Bd7 {[%clk 0:02:40.7]} 12. Nge2 {[%clk 0:02:44.9]} 12... Bxb5 {[%clk
0:02:33.5]} 13. Nxb5 {[%clk 0:02:43.9]} 13... Qb6 {[%clk 0:02:32.9]} 14. Qc2
{[%clk 0:02:36.4]} 14... Na6 {[%clk 0:02:32.6]} 15. O-O {[%clk 0:02:34]} 15...
Rfc8 {[%clk 0:02:29.5]} 16. Ng3 {[%clk 0:02:17.1]} 16... h5 {[%clk 0:02:25]} 17.
Bc3 {[%clk 0:02:06.1]} 17... Nb4 {[%clk 0:02:16.6]} 18. Qb1 {[%clk 0:02:00.1]}
18... h4 {[%clk 0:02:09.6]} 19. Ne2 {[%clk 0:02:00]} 19... Rxa4 {[%clk
0:02:04.8]} 20. Rxa4 {[%clk 0:01:50.5]} 20... Qxb5 {[%clk 0:02:04.9]} 21. Qd1
{[%clk 0:01:47]} 21... Nxe4 {[%clk 0:02:04.6]} 22. Bxg7 {[%clk 0:01:46.6]} 22...
Kxg7 {[%clk 0:02:05.5]} 23. Ra7 {[%clk 0:01:39.9]} 23... Nf6 {[%clk 0:01:48.1]}
24. Nf4 {[%clk 0:01:32.8]} 24... Qc4 {[%clk 0:01:36]} 25. Qf3 {[%clk 0:01:12.4]}
25... Nbxd5 {[%clk 0:01:27.7]} 26. Nxd5 {[%clk 0:00:58.6]} 26... Qxd5 {[%clk
0:01:28.6]} 27. Rxe7 {[%clk 0:00:54.6]} 27... Qxf3 {[%clk 0:01:26.6]} 28. gxf3
{[%clk 0:00:55]} 28... Rb8 {[%clk 0:01:26.7]} 29. Re2 {[%clk 0:00:52.9]} 29...
Rb3 {[%clk 0:01:22.4]} 30. Rd1 {[%clk 0:00:50.1]} 30... d5 {[%clk 0:01:22.3]}
31. Kg2 {[%clk 0:00:39.2]} 31... Nh5 {[%clk 0:01:16.9]} 32. Re3 {[%clk 0:00:29]}
32... Rxb2 {[%clk 0:01:14]} 33. Ra1 {[%clk 0:00:19.3]} 33... Nf4+ {[%clk
0:01:12.7]} 34. Kh1 {[%clk 0:00:16.4]} 34... Rxf2 {[%clk 0:01:08.2]} 35. Ra7
{[%clk 0:00:16.5]} 35... Nxh3 {[%clk 0:01:05.1]} 36. Ree7 {[%clk 0:00:06.5]}
36... Rxf3 {[%clk 0:01:04.4]} 37. Kg2 {[%clk 0:00:06.3]} 37... Ng5 {[%clk
0:01:04]} 38. Re5 {[%clk 0:00:04.5]} 38... h3+ {[%clk 0:00:57.5]} 39. Kh2 {[%clk
0:00:04.2]} 39... Rf5 {[%clk 0:00:57.7]} 40. Rxf5 {[%clk 0:00:03.9]} 40... gxf5
{[%clk 0:00:58.6]} 41. Rd7 {[%clk 0:00:03.7]} 41... d4 {[%clk 0:00:57.7]} 42.
Rd5 {[%clk 0:00:04.3]} 42... Ne6 {[%clk 0:00:55.2]} 43. Rxf5 {[%clk 0:00:03.8]}
43... c4 {[%clk 0:00:55.1]} 44. Rd5 {[%clk 0:00:03.2]} 44... c3 {[%clk
0:00:54.1]} 45. Kg3 {[%clk 0:00:02.9]} 45... c2 {[%clk 0:00:52.8]} 0-1

[Event "*** Titled Tuesday Blitz"]
[Site "Chess.com"]
[Date "2020.11.10"]
[Round "6"]
[White "TigrVShlyape"]
[Black "Sven_Tica"]
[Result "1/2-1/2"]
[WhiteElo "2857"]
[BlackElo "2702"]
[TimeControl "180+1"]
[EndTime "11:09:38 PST"]
[Termination "Game drawn by agreement"]

1. d4 {[%clk 0:03:00.9]} 1... d5 {[%clk 0:02:59.2]} 2. Nf3 {[%clk 0:02:59.9]}
2... e6 {[%clk 0:02:59.2]} 3. Bf4 {[%clk 0:02:59.2]} 3... Bd6 {[%clk 0:02:59.7]}
4. Bg3 {[%clk 0:02:56]} 4... Qe7 {[%clk 0:02:59.6]} 5. Nbd2 {[%clk 0:02:55]}
5... Nf6 {[%clk 0:02:58.4]} 6. e3 {[%clk 0:02:54.4]} 6... Nbd7 {[%clk
0:02:57.5]} 7. Ne5 {[%clk 0:02:53.6]} 7... O-O {[%clk 0:02:49.7]} 8. Bd3 {[%clk
0:02:52.5]} 8... c5 {[%clk 0:02:47.9]} 9. c3 {[%clk 0:02:52.1]} 9... g6 {[%clk
0:02:38.2]} 10. h4 {[%clk 0:02:40.3]} 10... Nh5 {[%clk 0:02:32.7]} 11. Bh2
{[%clk 0:02:40.3]} 11... f6 {[%clk 0:02:16.2]} 12. Nxd7 {[%clk 0:02:16.3]} 12...
Bxd7 {[%clk 0:02:15.8]} 13. g4 {[%clk 0:02:16.1]} 13... Ng7 {[%clk 0:02:13.9]}
14. h5 {[%clk 0:02:16.2]} 14... Bxh2 {[%clk 0:02:07.5]} 15. Rxh2 {[%clk
0:02:14.4]} 15... g5 {[%clk 0:02:07.4]} 16. Qc2 {[%clk 0:02:11.1]} 16... Ne8
{[%clk 0:02:07.2]} 17. dxc5 {[%clk 0:02:03.4]} 17... Rc8 {[%clk 0:02:04.8]} 18.
Nb3 {[%clk 0:02:01.1]} 18... Ba4 {[%clk 0:01:58.3]} 19. Qd2 {[%clk 0:01:57.8]}
19... Bxb3 {[%clk 0:01:57.3]} 20. axb3 {[%clk 0:01:57.2]} 20... Qxc5 {[%clk
0:01:57.9]} 21. b4 {[%clk 0:01:44.3]} 21... Qc7 {[%clk 0:01:53.1]} 22. f4 {[%clk
0:01:40.5]} 22... a6 {[%clk 0:01:44.7]} 23. Rf2 {[%clk 0:01:39.2]} 23... Nd6
{[%clk 0:01:41.2]} 24. O-O-O {[%clk 0:01:28.1]} 24... a5 {[%clk 0:01:31.2]} 25.
b5 {[%clk 0:01:20.8]} 25... Nc4 {[%clk 0:01:24]} 26. Bxc4 {[%clk 0:01:13.8]}
26... Qxc4 {[%clk 0:01:24.9]} 27. Qd3 {[%clk 0:01:03.9]} 27... Qxd3 {[%clk
0:01:23.9]} 28. Rxd3 {[%clk 0:01:03.1]} 28... Rc5 {[%clk 0:01:24.5]} 29. f5
{[%clk 0:00:49.2]} 29... e5 {[%clk 0:01:16.8]} 30. Rfd2 {[%clk 0:00:49]} 30...
Rd8 {[%clk 0:01:13.3]} 31. b6 {[%clk 0:00:49.1]} 31... Kf7 {[%clk 0:01:02.7]}
32. e4 {[%clk 0:00:48.6]} 32... d4 {[%clk 0:01:02.6]} 33. Kd1 {[%clk 0:00:43.7]}
33... Ke7 {[%clk 0:00:57]} 34. cxd4 {[%clk 0:00:42.2]} 34... exd4 {[%clk
0:00:57.7]} 35. Rxd4 {[%clk 0:00:42.4]} 35... Rxd4 {[%clk 0:00:58.2]} 36. Rxd4
{[%clk 0:00:42.5]} 36... Rb5 {[%clk 0:00:58.9]} 37. Rc4 {[%clk 0:00:42.6]} 37...
Rxb6 {[%clk 0:00:57.3]} 38. Rc7+ {[%clk 0:00:42.6]} 38... Kd6 {[%clk 0:00:57.8]}
39. Rxh7 {[%clk 0:00:42.7]} 39... Rxb2 {[%clk 0:00:58.3]} 40. h6 {[%clk
0:00:37.9]} 40... Rh2 {[%clk 0:00:52.6]} 41. Rxb7 {[%clk 0:00:37.5]} 41... Rxh6
{[%clk 0:00:51.6]} 42. Rb5 {[%clk 0:00:35.7]} 42... Rh4 {[%clk 0:00:47.2]} 43.
Rxa5 {[%clk 0:00:22.1]} 43... Rxg4 {[%clk 0:00:47.2]} 44. Ra6+ {[%clk
0:00:22.6]} 44... Ke7 {[%clk 0:00:46.8]} 45. Re6+ {[%clk 0:00:22]} 45... Kf7
{[%clk 0:00:47]} 46. Ke2 {[%clk 0:00:20.2]} 46... Rg3 {[%clk 0:00:47.3]} 47. Kf2
{[%clk 0:00:20.1]} 47... Ra3 {[%clk 0:00:46.9]} 48. e5 {[%clk 0:00:19.8]} 48...
fxe5 {[%clk 0:00:45.7]} 49. Rxe5 {[%clk 0:00:20.1]} 49... Kf6 {[%clk 0:00:45.9]}
50. Rb5 {[%clk 0:00:19.4]} 1/2-1/2

[Event "*** Titled Tuesday Blitz"]
[Site "Chess.com"]
[Date "2020.11.10"]
[Round "6"]
[White "profofchess"]
[Black "Morshynska"]
[Result "0-1"]
[WhiteElo "2415"]
[BlackElo "2244"]
[TimeControl "180+1"]
[EndTime "11:09:38 PST"]
[Termination "Morshynska won on time"]

1. e4 {[%clk 0:03:00.9]} 1... e5 {[%clk 0:02:59.4]} 2. Nf3 {[%clk 0:03:00.2]}
2... Nc6 {[%clk 0:02:59.9]} 3. Nc3 {[%clk 0:03:00.1]} 3... Nf6 {[%clk 0:02:59]}
4. Bb5 {[%clk 0:03:00.4]} 4... Bb4 {[%clk 0:02:56.8]} 5. O-O {[%clk 0:02:58.2]}
5... Bxc3 {[%clk 0:02:55.5]} 6. bxc3 {[%clk 0:02:57.7]} 6... O-O {[%clk
0:02:54.3]} 7. Re1 {[%clk 0:02:55.7]} 7... d6 {[%clk 0:02:53.8]} 8. d4 {[%clk
0:02:55.5]} 8... Bd7 {[%clk 0:02:38.2]} 9. Bg5 {[%clk 0:02:49.9]} 9... h6 {[%clk
0:02:18.3]} 10. Bh4 {[%clk 0:02:45]} 10... Qe7 {[%clk 0:01:33.5]} 11. Rb1 {[%clk
0:02:39.6]} 11... Rab8 {[%clk 0:01:11.7]} 12. Qd3 {[%clk 0:01:36.1]} 12... a6
{[%clk 0:00:50]} 13. Bc4 {[%clk 0:01:33.5]} 13... Na5 {[%clk 0:00:33.3]} 14. Bb3
{[%clk 0:01:33.5]} 14... Rfd8 {[%clk 0:00:28]} 15. Nd2 {[%clk 0:01:23]} 15... c5
{[%clk 0:00:26.6]} 16. d5 {[%clk 0:01:11]} 16... b5 {[%clk 0:00:25.5]} 17. c4
{[%clk 0:01:11.4]} 17... b4 {[%clk 0:00:23.4]} 18. Nf1 {[%clk 0:00:57.9]} 18...
g5 {[%clk 0:00:23.2]} 19. Bg3 {[%clk 0:00:57.6]} 19... Nb7 {[%clk 0:00:22.3]}
20. c3 {[%clk 0:00:54.6]} 20... a5 {[%clk 0:00:22.2]} 21. Ne3 {[%clk 0:00:49.9]}
21... Kg7 {[%clk 0:00:20.2]} 22. h4 {[%clk 0:00:47.6]} 22... Rh8 {[%clk
0:00:19.2]} 23. Bc2 {[%clk 0:00:35.8]} 23... Nh5 {[%clk 0:00:19.1]} 24. hxg5
{[%clk 0:00:17.2]} 24... hxg5 {[%clk 0:00:20]} 25. Qe2 {[%clk 0:00:09.3]} 25...
Nf4 {[%clk 0:00:19.7]} 26. Bxf4 {[%clk 0:00:09.3]} 26... gxf4 {[%clk 0:00:20.3]}
27. Nf5+ {[%clk 0:00:06.8]} 27... Bxf5 {[%clk 0:00:19.8]} 28. exf5 {[%clk
0:00:07.7]} 28... Qh4 {[%clk 0:00:19.5]} 29. f3 {[%clk 0:00:05.8]} 29... Qh1+
{[%clk 0:00:18.1]} 30. Kf2 {[%clk 0:00:06]} 30... Qh4+ {[%clk 0:00:18.3]} 31.
Kg1 {[%clk 0:00:05.9]} 31... Qg3 {[%clk 0:00:17.9]} 32. Qf2 {[%clk 0:00:04.8]}
32... Qg5 {[%clk 0:00:16]} 0-1

[Event "*** Titled Tuesday Blitz"]
[Site "Chess.com"]
[Date "2020.11.10"]
[Round "6"]
[White "Zhigalko_Sergei"]
[Black "BAS8892"]
[Result "1-0"]
[WhiteElo "2925"]
[BlackElo "2728"]
[TimeControl "180+1"]
[EndTime "11:09:40 PST"]
[Termination "Zhigalko_Sergei won by resignation"]

1. e4 {[%clk 0:03:00.9]} 1... c6 {[%clk 0:03:00]} 2. d4 {[%clk 0:03:00.9]} 2...
d5 {[%clk 0:03:00]} 3. e5 {[%clk 0:03:01.5]} 3... Bf5 {[%clk 0:02:59.7]} 4. Nf3
{[%clk 0:03:01.8]} 4... e6 {[%clk 0:02:59.9]} 5. Be2 {[%clk 0:03:02.4]} 5... Nd7
{[%clk 0:02:57.2]} 6. O-O {[%clk 0:03:00.5]} 6... Ne7 {[%clk 0:02:56.8]} 7. Nbd2
{[%clk 0:03:00.7]} 7... Bg4 {[%clk 0:02:55]} 8. h3 {[%clk 0:03:00.7]} 8... Bxf3
{[%clk 0:02:52.1]} 9. Nxf3 {[%clk 0:03:01.6]} 9... Nf5 {[%clk 0:02:52.2]} 10. c3
{[%clk 0:02:56.4]} 10... h5 {[%clk 0:02:51.4]} 11. Bd3 {[%clk 0:02:53]} 11... g6
{[%clk 0:02:49.9]} 12. Re1 {[%clk 0:02:46.5]} 12... Be7 {[%clk 0:02:46.5]} 13.
g3 {[%clk 0:02:17.7]} 13... Qb6 {[%clk 0:02:36.5]} 14. Kg2 {[%clk 0:02:14]}
14... c5 {[%clk 0:02:35]} 15. Qa4 {[%clk 0:02:12.1]} 15... O-O-O {[%clk
0:02:33.6]} 16. Bg5 {[%clk 0:01:55.1]} 16... Bxg5 {[%clk 0:02:25.2]} 17. Nxg5
{[%clk 0:01:54.4]} 17... Rhf8 {[%clk 0:02:19.9]} 18. Rad1 {[%clk 0:01:34.7]}
18... a6 {[%clk 0:02:09]} 19. h4 {[%clk 0:01:28.1]} 19... Ne7 {[%clk 0:01:39.5]}
20. b4 {[%clk 0:01:11.2]} 20... cxd4 {[%clk 0:01:35.9]} 21. cxd4 {[%clk
0:01:10.9]} 21... Kb8 {[%clk 0:01:35.7]} 22. b5 {[%clk 0:01:09.9]} 22... a5
{[%clk 0:01:27.9]} 23. Qa3 {[%clk 0:01:10.1]} 23... Nf5 {[%clk 0:01:13.9]} 24.
Bxf5 {[%clk 0:01:05.6]} 24... gxf5 {[%clk 0:01:11.5]} 25. Qe7 {[%clk 0:00:59.5]}
25... Qxb5 {[%clk 0:00:59.9]} 26. Rb1 {[%clk 0:00:58.6]} 26... Qa4 {[%clk
0:00:49.3]} 27. Nxf7 {[%clk 0:00:35.7]} 27... Rde8 {[%clk 0:00:45.9]} 28. Rxb7+
{[%clk 0:00:28.8]} 28... Kxb7 {[%clk 0:00:44]} 29. Nd6+ {[%clk 0:00:29.2]} 29...
Ka8 {[%clk 0:00:10.3]} 30. Nxe8 {[%clk 0:00:28.6]} 30... Rg8 {[%clk 0:00:06]}
31. Qxe6 {[%clk 0:00:24.3]} 31... Rg4 {[%clk 0:00:02.4]} 32. Qa6+ {[%clk
0:00:21.5]} 32... Kb8 {[%clk 0:00:01.9]} 33. Rb1+ {[%clk 0:00:22.4]} 1-0

[Event "*** Titled Tuesday Blitz"]
[Site "Chess.com"]
[Date "2020.11.10"]
[Round "6"]
[White "chenxiaoyuer"]
[Black "GrigorGrigorov"]
[Result "1-0"]
[WhiteElo "2543"]
[BlackElo "2741"]
[TimeControl "180+1"]
[EndTime "11:09:41 PST"]
[Termination "chenxiaoyuer won on time"]

1. e4 {[%clk 0:03:00.7]} 1... c6 {[%clk 0:02:59.7]} 2. d4 {[%clk 0:03:00.4]}
2... d5 {[%clk 0:02:59.9]} 3. Nd2 {[%clk 0:03:01.3]} 3... dxe4 {[%clk
0:02:59.5]} 4. Nxe4 {[%clk 0:03:02.2]} 4... Bf5 {[%clk 0:02:59.6]} 5. Ng3 {[%clk
0:03:02.2]} 5... Bg6 {[%clk 0:03:00]} 6. h4 {[%clk 0:03:02.7]} 6... h6 {[%clk
0:02:59.6]} 7. Nf3 {[%clk 0:03:02.9]} 7... e6 {[%clk 0:02:59.4]} 8. Ne5 {[%clk
0:02:58.3]} 8... Bh7 {[%clk 0:02:59.1]} 9. Bd3 {[%clk 0:02:58.9]} 9... Bxd3
{[%clk 0:02:58.5]} 10. Qxd3 {[%clk 0:02:59.8]} 10... Nd7 {[%clk 0:02:58]} 11.
Bf4 {[%clk 0:02:55.6]} 11... Ngf6 {[%clk 0:02:51.9]} 12. O-O-O {[%clk
0:02:53.1]} 12... Nd5 {[%clk 0:02:44.6]} 13. Bd2 {[%clk 0:02:47.2]} 13... Qc7
{[%clk 0:02:27.9]} 14. f4 {[%clk 0:02:42.7]} 14... N7f6 {[%clk 0:02:10.2]} 15.
Ne4 {[%clk 0:02:36.4]} 15... Nxe4 {[%clk 0:02:06.8]} 16. Qxe4 {[%clk 0:02:37.3]}
16... O-O-O {[%clk 0:02:01.6]} 17. f5 {[%clk 0:02:24.5]} 17... Nf6 {[%clk
0:02:00.9]} 18. Qf3 {[%clk 0:02:17.8]} 18... Rxd4 {[%clk 0:01:42.4]} 19. Bf4
{[%clk 0:02:00.2]} 19... Rxd1+ {[%clk 0:01:10.9]} 20. Rxd1 {[%clk 0:01:58.7]}
20... Nd5 {[%clk 0:01:05.9]} 21. fxe6 {[%clk 0:01:53.2]} 21... Bd6 {[%clk
0:00:54.8]} 22. exf7 {[%clk 0:01:43.7]} 22... Kb8 {[%clk 0:00:19.9]} 23. Kb1
{[%clk 0:01:29.5]} 23... Rf8 {[%clk 0:00:17.6]} 24. Ng6 {[%clk 0:01:21.7]} 24...
Nxf4 {[%clk 0:00:12.8]} 25. Nxf8 {[%clk 0:01:10]} 25... Bxf8 {[%clk 0:00:12.9]}
26. g3 {[%clk 0:00:55]} 26... Ne6 {[%clk 0:00:11.7]} 27. Qf5 {[%clk 0:00:51.3]}
27... Nd8 {[%clk 0:00:06.3]} 28. Rd7 {[%clk 0:00:49.8]} 28... Qb6 {[%clk
0:00:05.2]} 29. a4 {[%clk 0:00:41.4]} 29... a5 {[%clk 0:00:04.6]} 30. Qe5+
{[%clk 0:00:38.9]} 30... Ka7 {[%clk 0:00:04.5]} 31. Qe8 {[%clk 0:00:34.6]} 31...
Ba3 {[%clk 0:00:04.4]} 32. b3 {[%clk 0:00:25.8]} 32... Nxf7 {[%clk 0:00:04.5]}
33. Qxf7 {[%clk 0:00:22.7]} 33... Qb4 {[%clk 0:00:02.2]} 34. Ka2 {[%clk
0:00:16.4]} 1-0

[Event "*** Titled Tuesday Blitz"]
[Site "Chess.com"]
[Date "2020.11.10"]
[Round "6"]
[White "PaulfromSPb"]
[Black "mjray79"]
[Result "1-0"]
[WhiteElo "2703"]
[BlackElo "2498"]
[TimeControl "180+1"]
[EndTime "11:09:41 PST"]
[Termination "PaulfromSPb won by resignation"]

1. e4 {[%clk 0:03:00.9]} 1... e5 {[%clk 0:02:59.9]} 2. Nf3 {[%clk 0:03:00.9]}
2... Nc6 {[%clk 0:02:59.6]} 3. Bb5 {[%clk 0:02:59.6]} 3... a6 {[%clk 0:02:59.4]}
4. Ba4 {[%clk 0:02:59.2]} 4... Nf6 {[%clk 0:02:58.9]} 5. O-O {[%clk 0:02:59.6]}
5... Be7 {[%clk 0:02:59]} 6. Re1 {[%clk 0:02:59.4]} 6... b5 {[%clk 0:02:59]} 7.
Bb3 {[%clk 0:02:59.2]} 7... d6 {[%clk 0:02:59.4]} 8. c3 {[%clk 0:02:59.3]} 8...
O-O {[%clk 0:02:59.4]} 9. h3 {[%clk 0:02:59.3]} 9... Nb8 {[%clk 0:02:59.4]} 10.
d4 {[%clk 0:02:59.5]} 10... Nbd7 {[%clk 0:02:59.4]} 11. Nbd2 {[%clk 0:02:59.5]}
11... c5 {[%clk 0:02:59.3]} 12. Nf1 {[%clk 0:02:58.6]} 12... Re8 {[%clk
0:02:57.1]} 13. Ng3 {[%clk 0:02:58.6]} 13... Bf8 {[%clk 0:02:53]} 14. Be3 {[%clk
0:02:58.3]} 14... Bb7 {[%clk 0:02:47.6]} 15. Bc2 {[%clk 0:02:58.1]} 15... g6
{[%clk 0:02:41.3]} 16. Qd2 {[%clk 0:02:56.5]} 16... Bg7 {[%clk 0:02:40.1]} 17.
Rad1 {[%clk 0:02:55.9]} 17... Qc7 {[%clk 0:02:33.7]} 18. dxe5 {[%clk 0:02:51.5]}
18... dxe5 {[%clk 0:02:28]} 19. Qd6 {[%clk 0:02:51.5]} 19... Qc8 {[%clk
0:02:26.7]} 20. a4 {[%clk 0:02:48.7]} 20... Re6 {[%clk 0:02:21.2]} 21. Qd2
{[%clk 0:02:47.6]} 21... Nb6 {[%clk 0:02:20.4]} 22. Bb3 {[%clk 0:02:27.7]} 22...
c4 {[%clk 0:01:50.7]} 23. a5 {[%clk 0:02:25.6]} 23... Nbd7 {[%clk 0:01:29.4]}
24. Bc2 {[%clk 0:02:17.7]} 24... Qc7 {[%clk 0:01:29.6]} 25. Ng5 {[%clk
0:02:15.9]} 25... Ree8 {[%clk 0:01:24.1]} 26. b4 {[%clk 0:02:14]} 26... h6
{[%clk 0:01:08.8]} 27. Nf3 {[%clk 0:02:12.7]} 27... Kh7 {[%clk 0:01:08.9]} 28.
Qd6 {[%clk 0:02:09.8]} 28... Qc8 {[%clk 0:01:08.8]} 29. Bc1 {[%clk 0:02:01.6]}
29... Bf8 {[%clk 0:01:08.3]} 30. Qd2 {[%clk 0:02:01.3]} 30... Qc7 {[%clk
0:01:07.9]} 31. Qe3 {[%clk 0:01:55.8]} 31... Rad8 {[%clk 0:01:02.4]} 32. h4
{[%clk 0:01:54.3]} 32... Ng4 {[%clk 0:00:55.9]} 33. Qe2 {[%clk 0:01:54.2]} 33...
h5 {[%clk 0:00:44.6]} 34. Ng5+ {[%clk 0:01:52]} 34... Kg8 {[%clk 0:00:44.6]} 35.
f3 {[%clk 0:01:47.4]} 35... Ngf6 {[%clk 0:00:39.2]} 36. Be3 {[%clk 0:01:47.3]}
36... Qc6 {[%clk 0:00:36.9]} 37. Nh1 {[%clk 0:01:45.6]} 37... Bh6 {[%clk
0:00:34.7]} 38. Nf2 {[%clk 0:01:45.1]} 38... Bg7 {[%clk 0:00:34.1]} 39. Nfh3
{[%clk 0:01:39.7]} 39... Nf8 {[%clk 0:00:34.3]} 40. Bb6 {[%clk 0:01:37.1]} 40...
Rc8 {[%clk 0:00:31.2]} 41. Bc5 {[%clk 0:01:36]} 41... Ne6 {[%clk 0:00:30.8]} 42.
Rd6 {[%clk 0:01:34.9]} 42... Qc7 {[%clk 0:00:28.9]} 43. Nxe6 {[%clk 0:01:34.9]}
43... Rxe6 {[%clk 0:00:26.6]} 44. Rxe6 {[%clk 0:01:35]} 44... fxe6 {[%clk
0:00:27.5]} 45. Ng5 {[%clk 0:01:35.6]} 45... Re8 {[%clk 0:00:25.6]} 46. Rd1
{[%clk 0:01:35.7]} 46... Nh7 {[%clk 0:00:24.7]} 47. Qd2 {[%clk 0:01:21.6]} 47...
Nxg5 {[%clk 0:00:20.9]} 48. hxg5 {[%clk 0:01:21.5]} 48... Kh7 {[%clk 0:00:21.4]}
49. Qd7 {[%clk 0:01:21.1]} 49... Rc8 {[%clk 0:00:20.7]} 50. Bb6 {[%clk
0:01:16.9]} 50... Qc6 {[%clk 0:00:18.4]} 51. Rd6 {[%clk 0:01:16.8]} 51... Qxd7
{[%clk 0:00:17.7]} 52. Rxd7 {[%clk 0:01:17.7]} 52... Bc6 {[%clk 0:00:18]} 53.
Ra7 {[%clk 0:01:14]} 53... Kg8 {[%clk 0:00:16.9]} 54. Rxa6 {[%clk 0:01:12.2]}
54... Bf8 {[%clk 0:00:17.3]} 55. Ra7 {[%clk 0:01:11.5]} 55... Re8 {[%clk
0:00:15.4]} 56. a6 {[%clk 0:01:05.9]} 56... Be7 {[%clk 0:00:15.3]} 57. Be3
{[%clk 0:01:05.1]} 57... Rd8 {[%clk 0:00:14.9]} 58. Rxe7 {[%clk 0:01:03.9]} 1-0